[Event "*** SCC Grand Prix: Titled Tuesday Blitz"]
[Site "Chess.com"]
[Date "2020.09.08"]
[Round "7"]
[White "Butterfly"]
[Black "frederiksvane"]
[Result "0-1"]
[WhiteElo "2488"]
[BlackElo "2677"]
[TimeControl "180+1"]
[EndTime "11:18:21 PDT"]
[Termination "frederiksvane won by resignation"]

1. d4 {[%clk 0:03:00.9]} 1... Nf6 {[%clk 0:02:59.4]} 2. Nf3 {[%clk 0:02:59.8]}
2... b6 {[%clk 0:02:59]} 3. g3 {[%clk 0:03:00]} 3... e6 {[%clk 0:02:58.1]} 4.
Bg2 {[%clk 0:03:00.3]} 4... Bb7 {[%clk 0:02:53.4]} 5. O-O {[%clk 0:03:00.8]}
5... Be7 {[%clk 0:02:52.3]} 6. c4 {[%clk 0:03:01.3]} 6... O-O {[%clk 0:02:52.7]}
7. Nc3 {[%clk 0:03:01.9]} 7... Ne4 {[%clk 0:02:50.9]} 8. Qc2 {[%clk 0:02:56.5]}
8... Nxc3 {[%clk 0:02:49.9]} 9. Qxc3 {[%clk 0:02:57]} 9... d6 {[%clk 0:02:49.6]}
10. b4 {[%clk 0:02:53]} 10... Nd7 {[%clk 0:02:49.2]} 11. Bb2 {[%clk 0:02:52.3]}
11... Bf6 {[%clk 0:02:48.9]} 12. Qc2 {[%clk 0:02:50]} 12... Qe7 {[%clk
0:02:46.7]} 13. e4 {[%clk 0:02:48.6]} 13... e5 {[%clk 0:02:46.9]} 14. d5 {[%clk
0:02:46.8]} 14... g6 {[%clk 0:02:44.2]} 15. Ne1 {[%clk 0:02:44.9]} 15... Bg7
{[%clk 0:02:43.5]} 16. Bh3 {[%clk 0:02:41.6]} 16... Bc8 {[%clk 0:02:41]} 17. Nd3
{[%clk 0:02:39.6]} 17... Nf6 {[%clk 0:02:39.6]} 18. Bxc8 {[%clk 0:02:36.4]}
18... Raxc8 {[%clk 0:02:40.5]} 19. Qe2 {[%clk 0:02:28.2]} 19... c5 {[%clk
0:02:33.6]} 20. bxc5 {[%clk 0:02:17.8]} 20... bxc5 {[%clk 0:02:34.5]} 21. Bc3
{[%clk 0:02:14]} 21... Nd7 {[%clk 0:02:33.8]} 22. Rab1 {[%clk 0:02:12.7]} 22...
Nb6 {[%clk 0:02:33.6]} 23. Ne1 {[%clk 0:02:02.3]} 23... Qb7 {[%clk 0:02:28]} 24.
Nc2 {[%clk 0:01:53.9]} 24... Qa6 {[%clk 0:02:25.9]} 25. Ne3 {[%clk 0:01:54.4]}
25... Bh6 {[%clk 0:02:22.4]} 26. f4 {[%clk 0:01:54]} 26... f6 {[%clk 0:02:16]}
27. Rb5 {[%clk 0:01:49.2]} 27... Rce8 {[%clk 0:02:04.3]} 28. Ra5 {[%clk
0:01:35.9]} 28... Qb7 {[%clk 0:02:01.1]} 29. Qd3 {[%clk 0:01:30.5]} 29... Qe7
{[%clk 0:01:38.5]} 30. Ng4 {[%clk 0:01:29.7]} 30... Bg7 {[%clk 0:01:38.6]} 31.
f5 {[%clk 0:01:29.5]} 31... h5 {[%clk 0:01:17.2]} 32. fxg6 {[%clk 0:00:45.9]}
32... hxg4 {[%clk 0:01:12.4]} 33. Qe2 {[%clk 0:00:46.1]} 33... f5 {[%clk
0:01:04]} 34. exf5 {[%clk 0:00:42]} 34... Qg5 {[%clk 0:01:01.6]} 35. Bd2 {[%clk
0:00:40.3]} 35... Qh5 {[%clk 0:01:01.7]} 36. Qe4 {[%clk 0:00:37.1]} 36... Re7
{[%clk 0:00:57.6]} 37. Rb5 {[%clk 0:00:22.4]} 37... Nd7 {[%clk 0:00:54.8]} 38.
Rb3 {[%clk 0:00:12.9]} 38... Nf6 {[%clk 0:00:54.1]} 39. Qg2 {[%clk 0:00:11.8]}
39... Bh6 {[%clk 0:00:51.9]} 40. Bxh6 {[%clk 0:00:09.4]} 40... Qxh6 {[%clk
0:00:52.8]} 41. Rd3 {[%clk 0:00:05.3]} 41... e4 {[%clk 0:00:50.3]} 0-1

[Event "*** SCC Grand Prix: Titled Tuesday Blitz"]
[Site "Chess.com"]
[Date "2020.09.08"]
[Round "7"]
[White "kingnb"]
[Black "Jospem"]
[Result "1/2-1/2"]
[WhiteElo "2619"]
[BlackElo "2907"]
[TimeControl "180+1"]
[EndTime "11:18:22 PDT"]
[Termination "Game drawn - insufficient material"]

1. d4 {[%clk 0:03:00.9]} 1... Nf6 {[%clk 0:02:57.2]} 2. Nf3 {[%clk 0:03:01.8]}
2... e6 {[%clk 0:02:56.4]} 3. Nbd2 {[%clk 0:03:00.7]} 3... d5 {[%clk 0:02:56]}
4. e3 {[%clk 0:03:00.3]} 4... b6 {[%clk 0:02:56.2]} 5. Bd3 {[%clk 0:02:59.3]}
5... Bb7 {[%clk 0:02:56.6]} 6. Qe2 {[%clk 0:02:57.9]} 6... Nbd7 {[%clk
0:02:56.7]} 7. e4 {[%clk 0:02:58.5]} 7... dxe4 {[%clk 0:02:47]} 8. Nxe4 {[%clk
0:02:59.4]} 8... Be7 {[%clk 0:02:45.9]} 9. O-O {[%clk 0:02:58.2]} 9... O-O
{[%clk 0:02:45.5]} 10. c3 {[%clk 0:02:57.7]} 10... c5 {[%clk 0:02:43.5]} 11.
dxc5 {[%clk 0:02:52.3]} 11... Nxe4 {[%clk 0:02:28.4]} 12. Bxe4 {[%clk
0:02:53.2]} 12... Bxe4 {[%clk 0:02:29.1]} 13. Qxe4 {[%clk 0:02:54.1]} 13... Nxc5
{[%clk 0:02:29.7]} 14. Qe2 {[%clk 0:02:54.1]} 14... Qd3 {[%clk 0:02:28.3]} 15.
Re1 {[%clk 0:02:53.8]} 15... Rfd8 {[%clk 0:02:23]} 16. Be3 {[%clk 0:02:53.5]}
16... Qxe2 {[%clk 0:02:05.1]} 17. Rxe2 {[%clk 0:02:54.4]} 17... Rac8 {[%clk
0:02:04.9]} 18. Kf1 {[%clk 0:02:50.3]} 18... Na4 {[%clk 0:02:00.2]} 19. Ke1
{[%clk 0:02:47.6]} 19... f6 {[%clk 0:01:58.4]} 20. Rd1 {[%clk 0:02:44.4]} 20...
Kf7 {[%clk 0:01:54.1]} 21. Rxd8 {[%clk 0:02:14.8]} 21... Rxd8 {[%clk 0:01:51.6]}
22. Nd4 {[%clk 0:02:14.4]} 22... Nc5 {[%clk 0:01:46.4]} 23. Rd2 {[%clk
0:02:06.7]} 23... Ne4 {[%clk 0:01:16.1]} 24. Rd1 {[%clk 0:02:05.3]} 24... Bc5
{[%clk 0:01:09]} 25. Nc6 {[%clk 0:01:57.3]} 25... Rxd1+ {[%clk 0:00:36.8]} 26.
Kxd1 {[%clk 0:01:58.2]} 26... Nxf2+ {[%clk 0:00:37.7]} 27. Bxf2 {[%clk
0:01:57.6]} 27... Bxf2 {[%clk 0:00:38.6]} 28. Nxa7 {[%clk 0:01:58.2]} 28... g5
{[%clk 0:00:39]} 29. a4 {[%clk 0:01:58]} 29... g4 {[%clk 0:00:36.5]} 30. b4
{[%clk 0:01:56.5]} 30... f5 {[%clk 0:00:30.9]} 31. Nb5 {[%clk 0:01:50.3]} 31...
Ke7 {[%clk 0:00:28.3]} 32. a5 {[%clk 0:01:26.6]} 32... bxa5 {[%clk 0:00:24.8]}
33. bxa5 {[%clk 0:01:27.5]} 33... Kd7 {[%clk 0:00:22.8]} 34. a6 {[%clk
0:01:27.8]} 34... Kc6 {[%clk 0:00:16.9]} 35. a7 {[%clk 0:01:28.7]} 35... Kb7
{[%clk 0:00:16.1]} 36. Nc7 {[%clk 0:01:29.1]} 36... Bxa7 {[%clk 0:00:14.1]} 37.
Nxe6 {[%clk 0:01:29.2]} 37... Kc6 {[%clk 0:00:13.1]} 38. Ng7 {[%clk 0:01:19.9]}
38... f4 {[%clk 0:00:12.8]} 39. Nh5 {[%clk 0:01:16.5]} 39... f3 {[%clk
0:00:10.3]} 40. gxf3 {[%clk 0:01:16.8]} 40... gxf3 {[%clk 0:00:11.2]} 41. Nf6
{[%clk 0:01:16.8]} 41... h6 {[%clk 0:00:07.3]} 42. Ng4 {[%clk 0:01:12]} 42...
Kd5 {[%clk 0:00:06]} 43. Nxh6 {[%clk 0:01:11.3]} 43... Kc4 {[%clk 0:00:06.5]}
44. Kd2 {[%clk 0:01:08]} 44... Bb8 {[%clk 0:00:07]} 45. Ng4 {[%clk 0:01:07.5]}
45... Bf4+ {[%clk 0:00:07]} 46. Ke1 {[%clk 0:01:07.7]} 46... Kxc3 {[%clk
0:00:05.6]} 47. Kf2 {[%clk 0:01:07.7]} 47... Bxh2 {[%clk 0:00:05.7]} 48. Nxh2
{[%clk 0:01:08.3]} 48... Kb3 {[%clk 0:00:05.1]} 49. Kxf3 {[%clk 0:01:08.3]}
1/2-1/2

[Event "*** SCC Grand Prix: Titled Tuesday Blitz"]
[Site "Chess.com"]
[Date "2020.09.08"]
[Round "7"]
[White "Rodalquilar"]
[Black "IvanSoriano1"]
[Result "1-0"]
[WhiteElo "2661"]
[BlackElo "2465"]
[TimeControl "180+1"]
[EndTime "11:18:23 PDT"]
[Termination "Rodalquilar won by resignation"]

1. d4 {[%clk 0:03:00.9]} 1... d5 {[%clk 0:02:59.8]} 2. Bf4 {[%clk 0:03:01]} 2...
e6 {[%clk 0:02:59.6]} 3. e3 {[%clk 0:03:00.9]} 3... Nf6 {[%clk 0:03:00.2]} 4.
Nf3 {[%clk 0:03:00.6]} 4... Bd6 {[%clk 0:03:00.4]} 5. Bg3 {[%clk 0:03:00.9]}
5... O-O {[%clk 0:03:00.1]} 6. c4 {[%clk 0:03:00.9]} 6... c6 {[%clk 0:02:56.5]}
7. Nc3 {[%clk 0:03:00.3]} 7... Qe7 {[%clk 0:02:55.2]} 8. Qc2 {[%clk 0:02:34.8]}
8... Nbd7 {[%clk 0:02:51.5]} 9. cxd5 {[%clk 0:02:27.8]} 9... exd5 {[%clk
0:02:49.6]} 10. Bd3 {[%clk 0:02:27.9]} 10... Re8 {[%clk 0:02:47.5]} 11. Bh4
{[%clk 0:02:17.4]} 11... Nf8 {[%clk 0:02:45.7]} 12. O-O-O {[%clk 0:02:04.9]}
12... Bg4 {[%clk 0:02:41.5]} 13. Rde1 {[%clk 0:02:03.3]} 13... b5 {[%clk
0:02:36]} 14. e4 {[%clk 0:02:00.3]} 14... Bxf3 {[%clk 0:02:08.3]} 15. gxf3
{[%clk 0:01:53]} 15... Bf4+ {[%clk 0:01:46.7]} 16. Kb1 {[%clk 0:01:52.4]} 16...
Ng6 {[%clk 0:01:46.6]} 17. Bg3 {[%clk 0:01:47.9]} 17... Nh5 {[%clk 0:01:24.2]}
18. e5 {[%clk 0:01:38.2]} 18... b4 {[%clk 0:01:15.5]} 19. Ne2 {[%clk 0:01:38.4]}
19... Bh6 {[%clk 0:01:06]} 20. Rhg1 {[%clk 0:01:21.7]} 20... Rac8 {[%clk
0:00:56.4]} 21. Bf5 {[%clk 0:01:15.9]} 21... Rc7 {[%clk 0:00:56.4]} 22. Bg4
{[%clk 0:01:12.4]} 22... Nxg3 {[%clk 0:00:55.3]} 23. hxg3 {[%clk 0:01:11.6]}
23... c5 {[%clk 0:00:52.8]} 24. f4 {[%clk 0:01:11.6]} 24... cxd4 {[%clk
0:00:44.7]} 25. Qd3 {[%clk 0:00:58.1]} 25... b3 {[%clk 0:00:28.5]} 26. axb3
{[%clk 0:00:52.2]} 26... Rb8 {[%clk 0:00:28.5]} 27. Nxd4 {[%clk 0:00:52.6]}
27... Qb4 {[%clk 0:00:27.6]} 28. Rc1 {[%clk 0:00:49.6]} 28... Rxc1+ {[%clk
0:00:24.4]} 29. Rxc1 {[%clk 0:00:50.5]} 29... Nxe5 {[%clk 0:00:23.9]} 30. Qf5
{[%clk 0:00:10.9]} 30... Qxd4 {[%clk 0:00:20.1]} 31. Rc8+ {[%clk 0:00:10]} 1-0

[Event "*** SCC Grand Prix: Titled Tuesday Blitz"]
[Site "Chess.com"]
[Date "2020.09.08"]
[Round "7"]
[White "KonstantinB_1983"]
[Black "Jumbo"]
[Result "0-1"]
[WhiteElo "2522"]
[BlackElo "2752"]
[TimeControl "180+1"]
[EndTime "11:18:25 PDT"]
[Termination "Jumbo won by resignation"]

1. d4 {[%clk 0:03:00.9]} 1... g6 {[%clk 0:03:00.9]} 2. e4 {[%clk 0:02:59.3]}
2... Bg7 {[%clk 0:03:00.5]} 3. Nc3 {[%clk 0:02:59.6]} 3... d6 {[%clk 0:02:58.3]}
4. Be3 {[%clk 0:02:59.1]} 4... c6 {[%clk 0:02:57.9]} 5. Qd2 {[%clk 0:02:58.2]}
5... b5 {[%clk 0:02:56.3]} 6. a3 {[%clk 0:02:56.9]} 6... Nd7 {[%clk 0:02:52.4]}
7. Nf3 {[%clk 0:02:53.6]} 7... a6 {[%clk 0:02:49]} 8. Be2 {[%clk 0:02:48.7]}
8... Bb7 {[%clk 0:02:48.8]} 9. O-O {[%clk 0:02:47.2]} 9... c5 {[%clk 0:02:48.3]}
10. b4 {[%clk 0:02:41]} 10... cxd4 {[%clk 0:02:41.1]} 11. Bxd4 {[%clk
0:02:39.6]} 11... Ngf6 {[%clk 0:02:40.3]} 12. Bd3 {[%clk 0:02:36.2]} 12... O-O
{[%clk 0:02:32.2]} 13. h3 {[%clk 0:02:35]} 13... Qc7 {[%clk 0:02:30]} 14. Rac1
{[%clk 0:02:32.7]} 14... Rfc8 {[%clk 0:02:27.8]} 15. Ne2 {[%clk 0:02:14.7]}
15... e5 {[%clk 0:02:24.4]} 16. Ba1 {[%clk 0:02:12.5]} 16... Nxe4 {[%clk
0:02:24.9]} 17. Qe3 {[%clk 0:02:11.2]} 17... Nef6 {[%clk 0:02:21.2]} 18. c4
{[%clk 0:02:10.1]} 18... bxc4 {[%clk 0:01:44.7]} 19. Bxc4 {[%clk 0:02:05.9]}
19... Qd8 {[%clk 0:01:42.1]} 20. Rfd1 {[%clk 0:01:59.9]} 20... d5 {[%clk
0:01:40.5]} 21. Bb3 {[%clk 0:01:58.9]} 21... d4 {[%clk 0:01:39.4]} 22. Qd2
{[%clk 0:01:52.3]} 22... Bd5 {[%clk 0:01:33.2]} 23. Bxd5 {[%clk 0:01:47.3]}
23... Nxd5 {[%clk 0:01:34.1]} 24. Ng3 {[%clk 0:01:43.1]} 24... Rxc1 {[%clk
0:01:13.6]} 25. Rxc1 {[%clk 0:01:40.2]} 25... Rc8 {[%clk 0:01:13.7]} 26. Ne4
{[%clk 0:01:38.5]} 26... Rxc1+ {[%clk 0:01:05]} 27. Qxc1 {[%clk 0:01:37.6]}
27... Qc7 {[%clk 0:01:05.3]} 28. Qd1 {[%clk 0:01:17.7]} 28... Qc6 {[%clk
0:01:02]} 29. Nfd2 {[%clk 0:01:01.2]} 29... f5 {[%clk 0:00:55.9]} 30. Ng3 {[%clk
0:00:59.2]} 30... e4 {[%clk 0:00:53.3]} 31. Ndxe4 {[%clk 0:00:51.9]} 31... fxe4
{[%clk 0:00:52.7]} 32. Bxd4 {[%clk 0:00:51.9]} 32... Bxd4 {[%clk 0:00:34.9]} 33.
Qxd4 {[%clk 0:00:51.1]} 33... N5f6 {[%clk 0:00:35.4]} 34. a4 {[%clk 0:00:44.3]}
34... Qxa4 {[%clk 0:00:34.5]} 35. Nxe4 {[%clk 0:00:43.2]} 35... Nxe4 {[%clk
0:00:30.6]} 36. Qxe4 {[%clk 0:00:41]} 36... Qa1+ {[%clk 0:00:31]} 37. Kh2 {[%clk
0:00:38.5]} 37... Qe5+ {[%clk 0:00:31.4]} 38. Qxe5 {[%clk 0:00:37.4]} 38... Nxe5
{[%clk 0:00:32.3]} 39. Kg3 {[%clk 0:00:37.6]} 39... Nc6 {[%clk 0:00:32.8]} 40.
Kf4 {[%clk 0:00:37.3]} 40... Nxb4 {[%clk 0:00:32.9]} 41. Ke4 {[%clk 0:00:36.1]}
41... Kf7 {[%clk 0:00:32.9]} 42. Kd4 {[%clk 0:00:36.3]} 42... Ke6 {[%clk
0:00:33.3]} 43. Kc4 {[%clk 0:00:36]} 43... Nc2 {[%clk 0:00:33.4]} 44. Kc5 {[%clk
0:00:34.6]} 44... Ne1 {[%clk 0:00:33.2]} 45. g3 {[%clk 0:00:33.3]} 45... Nd3+
{[%clk 0:00:33.5]} 0-1

[Event "*** SCC Grand Prix: Titled Tuesday Blitz"]
[Site "Chess.com"]
[Date "2020.09.08"]
[Round "7"]
[White "chessbia"]
[Black "mamey78"]
[Result "0-1"]
[WhiteElo "2162"]
[BlackElo "2442"]
[TimeControl "180+1"]
[EndTime "11:18:27 PDT"]
[Termination "mamey78 won by resignation"]

1. d4 {[%clk 0:03:00.9]} 1... d5 {[%clk 0:02:59.1]} 2. c4 {[%clk 0:03:01.8]}
2... c6 {[%clk 0:02:57.6]} 3. Nf3 {[%clk 0:03:02.7]} 3... Nf6 {[%clk 0:02:57.5]}
4. Nc3 {[%clk 0:03:03.3]} 4... e6 {[%clk 0:02:56.9]} 5. e3 {[%clk 0:03:01.2]}
5... Nbd7 {[%clk 0:02:56.8]} 6. Bd3 {[%clk 0:03:01.5]} 6... dxc4 {[%clk
0:02:56.1]} 7. Bxc4 {[%clk 0:03:01]} 7... b5 {[%clk 0:02:57]} 8. Bd3 {[%clk
0:03:01.4]} 8... Bd6 {[%clk 0:02:56.4]} 9. O-O {[%clk 0:03:01.6]} 9... O-O
{[%clk 0:02:56.4]} 10. a3 {[%clk 0:03:01.7]} 10... Bb7 {[%clk 0:02:54.9]} 11. b4
{[%clk 0:03:01.5]} 11... a5 {[%clk 0:02:54.3]} 12. bxa5 {[%clk 0:03:00.2]} 12...
Qxa5 {[%clk 0:02:49.4]} 13. Bb2 {[%clk 0:03:00.2]} 13... Qc7 {[%clk 0:02:36.4]}
14. h3 {[%clk 0:02:56.7]} 14... Rfe8 {[%clk 0:02:35.1]} 15. Rc1 {[%clk
0:02:54.4]} 15... Qb8 {[%clk 0:02:34.7]} 16. Qb3 {[%clk 0:02:54.2]} 16... e5
{[%clk 0:02:14.5]} 17. Ng5 {[%clk 0:02:45.2]} 17... Re7 {[%clk 0:02:10.3]} 18.
Nce4 {[%clk 0:02:34.6]} 18... Nxe4 {[%clk 0:02:03.4]} 19. Nxe4 {[%clk
0:02:23.4]} 19... Bc7 {[%clk 0:02:02.1]} 20. Rfe1 {[%clk 0:02:14.5]} 20... exd4
{[%clk 0:01:22.4]} 21. exd4 {[%clk 0:02:12.4]} 21... Qe8 {[%clk 0:01:08.9]} 22.
Kf1 {[%clk 0:02:06.3]} 22... c5 {[%clk 0:01:07]} 23. dxc5 {[%clk 0:01:19.2]}
23... Bxe4 {[%clk 0:00:56.8]} 24. Bxe4 {[%clk 0:01:08.5]} 24... Rxe4 {[%clk
0:00:57.7]} 25. c6 {[%clk 0:00:58.9]} 25... Nc5 {[%clk 0:00:50.6]} 26. Qxb5
{[%clk 0:00:53.1]} 26... Rb8 {[%clk 0:00:39.6]} 27. Qxc5 {[%clk 0:00:37.4]}
27... Rxb2 {[%clk 0:00:38.3]} 28. Rxe4 {[%clk 0:00:37.6]} 28... Qxe4 {[%clk
0:00:36.9]} 29. Re1 {[%clk 0:00:37.7]} 29... Qd3+ {[%clk 0:00:33.9]} 30. Kg1
{[%clk 0:00:37.9]} 30... h6 {[%clk 0:00:33]} 31. Re8+ {[%clk 0:00:23.5]} 31...
Kh7 {[%clk 0:00:31.9]} 32. Re1 {[%clk 0:00:18.9]} 32... Qc2 {[%clk 0:00:27.5]}
33. Qa7 {[%clk 0:00:11.4]} 33... Bb6 {[%clk 0:00:23.6]} 34. Qxf7 {[%clk
0:00:08.8]} 34... Bxf2+ {[%clk 0:00:23.6]} 0-1

[Event "*** SCC Grand Prix: Titled Tuesday Blitz"]
[Site "Chess.com"]
[Date "2020.09.08"]
[Round "7"]
[White "GaboSalazar2001"]
[Black "Zhani-Z"]
[Result "0-1"]
[WhiteElo "2347"]
[BlackElo "2505"]
[TimeControl "180+1"]
[EndTime "11:18:30 PDT"]
[Termination "Zhani-Z won on time"]

1. e4 {[%clk 0:03:00.9]} 1... c5 {[%clk 0:02:51.5]} 2. Nf3 {[%clk 0:03:01.1]}
2... Nf6 {[%clk 0:02:51]} 3. e5 {[%clk 0:02:58.7]} 3... Nd5 {[%clk 0:02:50.2]}
4. c3 {[%clk 0:02:58.7]} 4... e6 {[%clk 0:02:42.8]} 5. d4 {[%clk 0:02:57.7]}
5... cxd4 {[%clk 0:02:42.7]} 6. cxd4 {[%clk 0:02:58.6]} 6... d6 {[%clk
0:02:42.4]} 7. Bd3 {[%clk 0:02:51.3]} 7... Nc6 {[%clk 0:02:41.7]} 8. O-O {[%clk
0:02:49]} 8... dxe5 {[%clk 0:02:41.3]} 9. dxe5 {[%clk 0:02:47.6]} 9... Qc7
{[%clk 0:02:28.6]} 10. Re1 {[%clk 0:02:39.9]} 10... Bb4 {[%clk 0:02:27]} 11. Bd2
{[%clk 0:02:35.4]} 11... Be7 {[%clk 0:02:11.7]} 12. Nc3 {[%clk 0:02:33.7]} 12...
Nxc3 {[%clk 0:02:00.3]} 13. Bxc3 {[%clk 0:02:32.5]} 13... O-O {[%clk 0:01:59.1]}
14. Rc1 {[%clk 0:02:32.2]} 14... Rd8 {[%clk 0:01:57.8]} 15. Qe2 {[%clk
0:02:26.3]} 15... Bd7 {[%clk 0:01:57.3]} 16. Qe4 {[%clk 0:02:22.5]} 16... g6
{[%clk 0:01:57.1]} 17. h4 {[%clk 0:02:10.9]} 17... Be8 {[%clk 0:01:53]} 18. h5
{[%clk 0:02:04.6]} 18... Rac8 {[%clk 0:01:52.4]} 19. Bb1 {[%clk 0:01:38.2]}
19... Rd5 {[%clk 0:01:11.9]} 20. a3 {[%clk 0:01:19.5]} 20... Rcd8 {[%clk
0:01:11.3]} 21. Ba2 {[%clk 0:01:10.1]} 21... R5d7 {[%clk 0:00:58.1]} 22. Qg4
{[%clk 0:01:07.2]} 22... Qb6 {[%clk 0:00:39.9]} 23. hxg6 {[%clk 0:00:51.3]}
23... hxg6 {[%clk 0:00:38.8]} 24. Ng5 {[%clk 0:00:39.6]} 24... Bxg5 {[%clk
0:00:23.6]} 25. Qxg5 {[%clk 0:00:40.5]} 25... Ne7 {[%clk 0:00:22.9]} 26. Re3
{[%clk 0:00:28.9]} 26... Nf5 {[%clk 0:00:14.2]} 27. Rh3 {[%clk 0:00:22.7]} 27...
Rd1+ {[%clk 0:00:14.1]} 28. Rxd1 {[%clk 0:00:08.1]} 28... Rxd1+ {[%clk 0:00:15]}
29. Kh2 {[%clk 0:00:07.3]} 29... Qxf2 {[%clk 0:00:15.5]} 0-1

[Event "*** SCC Grand Prix: Titled Tuesday Blitz"]
[Site "Chess.com"]
[Date "2020.09.08"]
[Round "7"]
[White "Tenamu"]
[Black "anon569"]
[Result "1-0"]
[WhiteElo "2369"]
[BlackElo "2242"]
[TimeControl "180+1"]
[EndTime "11:18:36 PDT"]
[Termination "Tenamu won on time"]

1. d4 {[%clk 0:03:00.9]} 1... Nf6 {[%clk 0:02:58.8]} 2. Nc3 {[%clk 0:03:00.8]}
2... d5 {[%clk 0:02:54.4]} 3. Bf4 {[%clk 0:03:00.6]} 3... g6 {[%clk 0:02:53.6]}
4. Nf3 {[%clk 0:02:54]} 4... Bg7 {[%clk 0:02:50.4]} 5. Ne5 {[%clk 0:02:53.9]}
5... c5 {[%clk 0:02:47.3]} 6. e3 {[%clk 0:02:50.8]} 6... O-O {[%clk 0:02:46.1]}
7. h4 {[%clk 0:02:49.4]} 7... h5 {[%clk 0:02:28.2]} 8. dxc5 {[%clk 0:02:47.3]}
8... Qa5 {[%clk 0:02:18.3]} 9. Nd3 {[%clk 0:02:15.4]} 9... Ne4 {[%clk
0:01:47.8]} 10. Be5 {[%clk 0:02:03.2]} 10... Nxc3 {[%clk 0:01:35.5]} 11. Qd2
{[%clk 0:01:59.3]} 11... Bxe5 {[%clk 0:01:27.5]} 12. Nxe5 {[%clk 0:02:00.2]}
12... Qxc5 {[%clk 0:01:27.1]} 13. Qxc3 {[%clk 0:01:59.7]} 13... Qxc3+ {[%clk
0:01:13.8]} 14. bxc3 {[%clk 0:02:00.6]} 14... Nd7 {[%clk 0:01:09.6]} 15. Nxd7
{[%clk 0:01:48.5]} 15... Bxd7 {[%clk 0:01:10.5]} 16. c4 {[%clk 0:01:48.1]} 16...
dxc4 {[%clk 0:01:00]} 17. Bxc4 {[%clk 0:01:46.6]} 17... Rac8 {[%clk 0:00:59.5]}
18. Bb3 {[%clk 0:01:45.9]} 18... Bf5 {[%clk 0:00:57.4]} 19. O-O-O {[%clk
0:01:42.4]} 19... Rc7 {[%clk 0:00:56]} 20. Kb2 {[%clk 0:01:41]} 20... b5 {[%clk
0:00:50.6]} 21. f3 {[%clk 0:01:36.5]} 21... a5 {[%clk 0:00:48.7]} 22. e4 {[%clk
0:01:35.4]} 22... Bd7 {[%clk 0:00:47.1]} 23. c3 {[%clk 0:01:30.3]} 23... a4
{[%clk 0:00:42.7]} 24. Bc2 {[%clk 0:01:29.1]} 24... Rfc8 {[%clk 0:00:39.8]} 25.
Rd3 {[%clk 0:01:28.1]} 25... b4 {[%clk 0:00:22.5]} 26. Rhd1 {[%clk 0:01:20.5]}
26... bxc3+ {[%clk 0:00:13.3]} 27. Ka3 {[%clk 0:01:16.3]} 27... Be8 {[%clk
0:00:11.5]} 28. Rd8 {[%clk 0:01:13.8]} 28... Kf8 {[%clk 0:00:11.4]} 29. Kb4
{[%clk 0:01:06.3]} 29... Rb7+ {[%clk 0:00:10.5]} 30. Ka3 {[%clk 0:01:05.9]}
30... Rcc7 {[%clk 0:00:09.3]} 31. Bxa4 {[%clk 0:01:01]} 31... Ra7 {[%clk
0:00:04.7]} 32. Rxe8+ {[%clk 0:01:00.9]} 32... Kg7 {[%clk 0:00:04.7]} 33. Kb4
{[%clk 0:00:52.5]} 33... Rcb7+ {[%clk 0:00:03.8]} 34. Bb5 {[%clk 0:00:51]} 34...
Rxa2 {[%clk 0:00:03.2]} 35. Kc4 {[%clk 0:00:40.5]} 35... Rxg2 {[%clk 0:00:01.1]}
36. Bc6 {[%clk 0:00:39.1]} 1-0

[Event "*** SCC Grand Prix: Titled Tuesday Blitz"]
[Site "Chess.com"]
[Date "2020.09.08"]
[Round "7"]
[White "LaPorfia"]
[Black "korbul"]
[Result "0-1"]
[WhiteElo "2271"]
[BlackElo "2460"]
[TimeControl "180+1"]
[EndTime "11:18:37 PDT"]
[Termination "korbul won by resignation"]

1. d4 {[%clk 0:03:00.9]} 1... Nf6 {[%clk 0:02:59.6]} 2. Nf3 {[%clk 0:03:00.8]}
2... b6 {[%clk 0:02:59.1]} 3. Bf4 {[%clk 0:03:00]} 3... Bb7 {[%clk 0:02:58.4]}
4. Nbd2 {[%clk 0:03:00.4]} 4... g6 {[%clk 0:02:57.3]} 5. e3 {[%clk 0:02:58.7]}
5... Bg7 {[%clk 0:02:57.2]} 6. Be2 {[%clk 0:02:58.3]} 6... O-O {[%clk
0:02:57.4]} 7. h4 {[%clk 0:02:56.6]} 7... c5 {[%clk 0:02:54.9]} 8. c3 {[%clk
0:02:53.9]} 8... cxd4 {[%clk 0:02:54.7]} 9. exd4 {[%clk 0:02:40.1]} 9... Nd5
{[%clk 0:02:54]} 10. Bg3 {[%clk 0:02:37.3]} 10... h5 {[%clk 0:02:50.1]} 11. O-O
{[%clk 0:02:23.5]} 11... d6 {[%clk 0:02:49.5]} 12. Re1 {[%clk 0:02:22.8]} 12...
Nc6 {[%clk 0:02:48.9]} 13. Bc4 {[%clk 0:02:20.7]} 13... Nf6 {[%clk 0:02:40.8]}
14. Bb3 {[%clk 0:02:19.3]} 14... Na5 {[%clk 0:02:40.1]} 15. Bc2 {[%clk
0:02:16.9]} 15... Rc8 {[%clk 0:02:28.1]} 16. Ne4 {[%clk 0:02:14.9]} 16... Nxe4
{[%clk 0:02:27]} 17. Bxe4 {[%clk 0:02:15.8]} 17... Bxe4 {[%clk 0:02:26.4]} 18.
Rxe4 {[%clk 0:02:16.7]} 18... Nc4 {[%clk 0:02:26]} 19. b3 {[%clk 0:02:12.4]}
19... Na5 {[%clk 0:02:24.5]} 20. Rc1 {[%clk 0:02:11.9]} 20... d5 {[%clk
0:02:23.8]} 21. Re1 {[%clk 0:02:05.6]} 21... Nc6 {[%clk 0:02:20]} 22. Qd2 {[%clk
0:02:01.9]} 22... b5 {[%clk 0:02:19]} 23. Ne5 {[%clk 0:01:56.4]} 23... Nxe5
{[%clk 0:02:18.2]} 24. Bxe5 {[%clk 0:01:56.8]} 24... e6 {[%clk 0:02:16.5]} 25.
Bxg7 {[%clk 0:01:52.3]} 25... Kxg7 {[%clk 0:02:16.4]} 26. g3 {[%clk 0:01:52.9]}
26... Rc6 {[%clk 0:02:11.9]} 27. Qe2 {[%clk 0:01:45.5]} 27... Qf6 {[%clk
0:02:02.8]} 28. Qxb5 {[%clk 0:01:40.3]} 28... Rfc8 {[%clk 0:02:02.2]} 29. Qd3
{[%clk 0:01:32.2]} 29... a5 {[%clk 0:02:02.2]} 30. c4 {[%clk 0:01:29.5]} 30...
dxc4 {[%clk 0:02:01]} 31. bxc4 {[%clk 0:01:30.4]} 31... Rd6 {[%clk 0:02:00.7]}
32. Red1 {[%clk 0:01:28.4]} 32... Rcd8 {[%clk 0:02:00]} 33. d5 {[%clk
0:01:22.6]} 33... Qe5 {[%clk 0:01:44.1]} 34. Re1 {[%clk 0:01:05.7]} 34... Qf6
{[%clk 0:01:35.2]} 35. Qd2 {[%clk 0:00:57.1]} 35... exd5 {[%clk 0:01:32.8]} 36.
c5 {[%clk 0:00:57.2]} 36... Ra6 {[%clk 0:01:24.4]} 37. Qd3 {[%clk 0:00:54.9]}
37... d4 {[%clk 0:01:17.9]} 38. Re4 {[%clk 0:00:51.1]} 38... Rc6 {[%clk
0:01:14.7]} 39. Rf4 {[%clk 0:00:49.4]} 39... Qe5 {[%clk 0:01:11.8]} 40. Re4
{[%clk 0:00:40.5]} 40... Qf5 {[%clk 0:01:03.2]} 41. Qc4 {[%clk 0:00:26.2]} 41...
d3 {[%clk 0:00:54]} 42. Rf4 {[%clk 0:00:25.4]} 42... Qd5 {[%clk 0:00:47.7]} 43.
Qc3+ {[%clk 0:00:23.6]} 43... Kg8 {[%clk 0:00:43.4]} 44. Qxa5 {[%clk 0:00:20.6]}
44... d2 {[%clk 0:00:36.7]} 45. Rd1 {[%clk 0:00:20.8]} 45... Rxc5 {[%clk
0:00:36.4]} 46. Qa7 {[%clk 0:00:12.2]} 46... Rc1 {[%clk 0:00:34.4]} 0-1